bitfinex-derivatives/quotes_BTCF0:USTF0_20241218
["timestamp","ask_amount","ask_price","bid_price","bid_amount"]
[1734497832435,0.08114729,103830.0,103820.0,0.048157]
[1734497833437,0.44194729,103830.0,103820.0,0.048157]
[1734497833642,0.08114729,103830.0,103820.0,0.048157]
[1734497834733,0.02704729,103830.0,103820.0,0.048157]
[1734497834935,0.01011367,103830.0,103820.0,0.408957]
[1734497835348,0.01011367,103830.0,103820.0,0.048157]
[1734497835935,0.08133741,103830.0,103820.0,0.048157]
[1734497836138,0.49029241,103830.0,103800.0,0.42513876]
[1734497836449,0.07122374,103820.0,103810.0,0.048161]
[1734497836940,0.43202374,103820.0,103810.0,0.048161]
[1734497837134,0.048162,103810.0,103800.0,0.464266]
[1734497837345,0.11938574,103810.0,103800.0,0.464266]
[1734497838242,0.11938574,103810.0,103800.0,0.103466]
[1734497839248,0.048162,103810.0,103800.0,0.103466]
[1734497841052,0.59088174,103820.0,103800.0,0.103466]
[1734497841856,0.50324748,103810.0,103780.0,7.2e-05]
[1734497842152,0.048182,103770.0,103750.0,0.158389]
[1734497842341,0.07122374,103760.0,103750.0,0.158389]
[1734497842741,0.48020574,103770.0,103750.0,0.158389]
[1734497842938,0.48020574,103770.0,103760.0,9.687e-05]
[1734497843352,0.11940574,103770.0,103760.0,9.687e-05]
[1734497843542,0.48020574,103770.0,103760.0,9.687e-05]
[1734497844448,0.3608,103770.0,103760.0,0.04828187]
[1734497844753,0.54142374,103780.0,103770.0,0.048181]
[1734497845554,0.48542374,103780.0,103770.0,0.048681]
[1734497845750,0.4142,103780.0,103770.0,0.048681]
[1734497846150,0.3608,103780.0,103770.0,0.048681]
[1734497846449,0.3608,103780.0,103770.0,0.048181]
[1734497847053,0.43202374,103780.0,103770.0,0.048181]
[1734497847449,0.43202374,103780.0,103770.0,0.048681]
[1734497847652,0.3608,103780.0,103770.0,0.048681]
[1734497847852,0.43202374,103780.0,103770.0,0.048681]
[1734497848360,0.3608,103780.0,103770.0,0.048181]
[1734497848744,0.49654866,103790.0,103770.0,0.408981]
[1734497849458,0.13574866,103790.0,103770.0,0.408981]
[1734497849753,0.13574866,103790.0,103780.0,0.048176]
[1734497849950,0.48702374,103800.0,103780.0,0.048172]
[1734497850152,0.48702374,103800.0,103780.0,0.159172]
[1734497850854,0.48702374,103800.0,103790.0,0.048171]
[1734497851042,0.43202374,103800.0,103790.0,0.048171]
[1734497851245,0.53718874,103810.0,103790.0,0.048171]
[1734497851447,0.43202374,103800.0,103790.0,0.048171]
[1734497851651,0.45109131,103800.0,103790.0,0.048171]
[1734497853050,0.57048305,103800.0,103780.0,0.159176]
[1734497853258,0.43202374,103790.0,103780.0,0.159176]
[1734497854859,0.43202374,103790.0,103780.0,0.055]
[1734497854860,0.48019474,103790.0,103780.0,0.055]
[1734497855050,0.53619474,103790.0,103780.0,0.055]
[1734497856245,0.53619474,103790.0,103770.0,0.04818]
[1734497856550,0.43202374,103780.0,103770.0,0.04818]
[1734497856945,0.53619474,103790.0,103770.0,0.04818]
[1734497857159,0.53619474,103790.0,103780.0,0.048176]
[1734497857455,0.17539474,103790.0,103780.0,0.048176]
[1734497857953,0.53619474,103790.0,103780.0,0.048176]
[1734497858160,0.53619474,103790.0,103770.0,0.408979]
[1734497858360,0.07122374,103780.0,103770.0,0.408979]
[1734497859155,0.07122374,103780.0,103770.0,0.048179]
[1734497860452,0.55158037,103790.0,103770.0,0.048179]
[1734497860767,0.07122374,103780.0,103770.0,0.048179]
[1734497860952,0.55158037,103790.0,103770.0,0.048179]
[1734497861262,0.07122374,103780.0,103770.0,0.048179]
[1734497861558,0.55158037,103790.0,103780.0,0.048176]
[1734497861755,0.49558037,103790.0,103780.0,0.048176]
[1734497863347,0.49558037,103790.0,103770.0,0.3608]
[1734497863348,0.49558137,103790.0,103770.0,0.048177]
[1734497863560,0.07122374,103780.0,103770.0,0.048177]
[1734497864063,0.07122374,103780.0,103770.0,0.408977]
[1734497864860,0.42803557,103800.0,103790.0,0.048171]
[1734497866361,0.51439121,103800.0,103790.0,0.048171]
[1734497867167,0.58561495,103800.0,103770.0,0.408976]
[1734497867362,0.07122374,103780.0,103770.0,0.408976]
[1734497867557,0.07122374,103790.0,103770.0,0.3608]
[1734497867758,0.07122374,103790.0,103780.0,0.048176]
[1734497869951,0.51439121,103800.0,103790.0,0.048171]
[1734497873167,0.46622321,103800.0,103790.0,0.048171]
[1734497874059,0.46622321,103800.0,103790.0,0.158671]
[1734497874366,0.01906757,103800.0,103790.0,0.16770976]
[1734497874555,0.53408774,103810.0,103790.0,0.16770976]
[1734497874871,0.07122374,103800.0,103790.0,0.22260976]
[1734497875172,0.53408774,103810.0,103790.0,0.22260976]
[1734497875876,0.0189754,103800.0,103790.0,0.22260976]
[1734497876968,0.53408774,103810.0,103790.0,0.22260976]
[1734497877168,0.07122374,103800.0,103790.0,0.213571]
[1734497879262,0.11939074,103800.0,103790.0,0.158671]
[1734497879663,0.07122374,103800.0,103790.0,0.158671]
[1734497880476,0.07122374,103800.0,103790.0,0.16770976]
[1734497880674,0.07122374,103800.0,103790.0,0.158671]
[1734497881261,0.37521589,103810.0,103800.0,0.048167]
[1734497881459,0.08563963,103810.0,103800.0,0.048167]
[1734497881667,0.48018574,103810.0,103800.0,0.048167]
[1734497882071,0.48018574,103810.0,103790.0,0.1105]
[1734497882268,0.07122374,103800.0,103790.0,0.15867]
[1734497882472,0.43202374,103800.0,103790.0,0.15867]
[1734497882773,0.3608,103800.0,103790.0,0.15867]
[1734497883076,0.07122374,103800.0,103790.0,0.158671]
[1734497883467,0.43202374,103800.0,103790.0,0.158671]
[1734497883670,0.50324748,103800.0,103790.0,0.048171]
[1734497883870,0.65951448,103800.0,103790.0,0.048171]
[1734497885578,0.48732374,103800.0,103790.0,0.048171]
[1734497885762,0.408963,103810.0,103790.0,0.048171]
[1734497885763,0.3608,103810.0,103800.0,0.048167]
[1734497885963,0.49918798,103820.0,103800.0,0.3608]
[1734497885964,0.62471172,103820.0,103800.0,0.3608]
[1734497886170,0.62471172,103820.0,103810.0,0.048162]
[1734497886171,0.52055372,103820.0,103810.0,0.048162]
[1734497887574,0.52005372,103820.0,103810.0,0.048162]
[1734497887783,0.048164,103810.0,103790.0,0.04817]
[1734497888076,0.48019074,103800.0,103780.0,0.48474901]
[1734497888283,0.07122374,103790.0,103780.0,0.48474901]
[1734497888773,0.07122374,103790.0,103780.0,0.47572168]
[1734497890073,0.48019074,103800.0,103790.0,0.048171]
[1734497892574,0.07122374,103800.0,103790.0,0.048171]
[1734497892773,0.48018674,103810.0,103800.0,0.048167]
[1734497895479,0.43202374,103810.0,103800.0,0.048167]
[1734497896276,0.3608,103810.0,103800.0,0.048167]
[1734497896479,0.43202374,103810.0,103800.0,0.05719433]
[1734497897283,0.43202374,103810.0,103800.0,0.12546658]
[1734497897498,0.43202374,103810.0,103800.0,0.11643925]
[1734497898186,0.07122374,103810.0,103800.0,0.47723925]
[1734497899086,0.07122374,103810.0,103800.0,0.11643925]
[1734497899386,0.07122374,103810.0,103800.0,0.47723925]
[1734497902869,0.62001172,103820.0,103800.0,0.47723925]
[1734497903282,0.62001172,103820.0,103810.0,0.048162]
[1734497906089,0.56821172,103820.0,103810.0,0.048162]
[1734497906789,0.56821172,103820.0,103810.0,0.099862]
[1734497909587,0.20741172,103820.0,103810.0,0.099862]
[1734497914595,0.08802998,103820.0,103810.0,0.099862]
[1734497914785,0.01954622,103820.0,103810.0,0.099862]
[1734497915016,0.09076996,103820.0,103810.0,0.099862]
[1734497915189,0.13892696,103820.0,103810.0,0.099862]
[1734497915586,0.09076996,103820.0,103810.0,0.099862]
[1734497921292,0.01954622,103820.0,103810.0,0.099862]
[1734497924193,0.06770322,103820.0,103810.0,0.099862]
[1734497924392,0.42850322,103820.0,103810.0,0.099862]
[1734497924592,0.49972696,103820.0,103810.0,0.099862]
[1734497925297,0.09076996,103820.0,103810.0,0.099862]
[1734497926888,0.45592239,103830.0,103810.0,0.099862]
[1734497927089,0.0005,103850.0,103840.0,0.048148]
[1734497927295,0.0005,103850.0,103840.0,0.408948]
[1734497927504,0.48016974,103850.0,103830.0,0.15887933]
[1734497927709,0.07122374,103840.0,103830.0,0.100352]
[1734497928200,0.07122374,103840.0,103830.0,0.10044573]
[1734497930996,0.48078579,103850.0,103830.0,0.10044573]
[1734497931594,0.48028579,103850.0,103830.0,0.10044573]
[1734497932492,0.48078579,103850.0,103830.0,0.10044573]
[1734497932891,0.48078579,103850.0,103840.0,0.048148]
[1734497932892,0.43263979,103850.0,103840.0,0.048148]
[1734497933093,0.07183979,103850.0,103840.0,0.048148]
[1734497933400,0.43263979,103850.0,103840.0,0.048148]
[1734497933702,0.43213979,103850.0,103840.0,0.048148]
[1734497934492,0.43263979,103850.0,103840.0,0.048148]
[1734497935216,0.36141605,103850.0,103840.0,0.048148]
[1734497935503,0.36091605,103850.0,103840.0,0.048148]
[1734497935802,0.00011605,103850.0,103840.0,0.048148]
[1734497936002,0.00011605,103850.0,103840.0,0.097348]
[1734497936190,0.07133979,103850.0,103840.0,0.097348]
[1734497936692,0.43213979,103850.0,103840.0,0.097348]
[1734497937291,0.43213979,103850.0,103830.0,0.47517804]
[1734497937504,0.11937174,103840.0,103830.0,9.373e-05]
[1734497937712,0.22147174,103840.0,103830.0,9.373e-05]
[1734497938296,0.22147174,103840.0,103830.0,0.04824673]
[1734497938700,0.150248,103840.0,103830.0,0.04824673]
[1734497941703,0.41966254,103850.0,103830.0,0.40904673]
[1734497941909,0.41966254,103850.0,103830.0,0.46044673]
[1734497942405,0.49088628,103850.0,103830.0,0.46044673]
[1734497942807,0.49088628,103850.0,103830.0,0.04824673]
[1734497943105,0.07122374,103840.0,103830.0,0.04824673]
[1734497944010,0.11937174,103840.0,103830.0,0.04824673]
[1734497944503,0.16857174,103840.0,103830.0,0.04824673]
[1734497945308,0.16857174,103840.0,103830.0,9.373e-05]
[1734497947298,0.097348,103840.0,103830.0,9.373e-05]
[1734497947504,0.048148,103840.0,103830.0,0.04824673]
[1734497948510,0.048148,103840.0,103830.0,0.40904673]
[1734497949709,0.048148,103840.0,103830.0,0.04824673]
[1734497949907,0.048148,103840.0,103830.0,0.40904673]
[1734497952222,0.048148,103840.0,103830.0,0.41959762]
[1734497952801,0.13008728,103850.0,103830.0,0.41959762]
[1734497953214,0.13008728,103850.0,103830.0,0.46839762]
[1734497953417,0.05886354,103850.0,103830.0,0.42024462]
[1734497953710,0.05886354,103850.0,103840.0,0.048148]
[1734497954019,0.05886354,103850.0,103840.0,0.408948]
[1734497954501,0.01071854,103850.0,103840.0,0.408948]
[1734497954708,0.00011605,103850.0,103840.0,0.46917533]
[1734497954907,0.07133979,103850.0,103840.0,0.46917533]
[1734497956315,0.00011605,103850.0,103840.0,0.46917533]
[1734497957015,0.11948379,103850.0,103840.0,0.10837533]
[1734497957921,0.11948379,103850.0,103840.0,0.099348]
[1734497958621,0.13002532,103850.0,103830.0,0.42872106]
[1734497958811,0.07122374,103840.0,103830.0,0.42807306]
[1734497959714,0.11937174,103840.0,103830.0,0.01009373]
[1734497959914,0.58247174,103840.0,103830.0,0.01009373]
[1734497965922,0.65369548,103840.0,103830.0,0.01009373]
[1734497966223,0.58247174,103840.0,103830.0,0.01009373]
[1734497969924,0.60163156,103840.0,103830.0,0.01009373]
[1734497973926,0.53040782,103840.0,103830.0,0.01009373]
[1734497974123,0.62389416,103840.0,103830.0,0.01009373]
[1734497978037,0.60162815,103840.0,103830.0,0.01009373]
[1734497985556,0.49932815,103840.0,103830.0,0.01009373]
[1734497985837,0.37995982,103840.0,103830.0,0.05824673]
[1734497986637,0.01915982,103840.0,103830.0,0.05824673]
[1734497986839,0.01915982,103840.0,103830.0,0.41904673]
[1734497988232,0.01915982,103840.0,103830.0,0.05824673]
[1734497989036,0.01915982,103840.0,103830.0,0.41904673]
[1734497990833,0.05880158,103850.0,103830.0,0.41904673]
[1734497991033,0.05880158,103850.0,103840.0,0.0964]
[1734497991257,0.05880158,103850.0,103840.0,0.190248]
[1734497991432,0.05880158,103850.0,103840.0,0.551048]
[1734497991633,0.13002191,103850.0,103840.0,0.551048]
[1734497992337,0.01065758,103850.0,103840.0,0.551048]
[1734497993442,0.00011605,103850.0,103840.0,0.551048]
[1734497997140,0.00011605,103850.0,103840.0,0.62226833]
[1734497998044,0.00011605,103850.0,103840.0,0.6444561]
[1734497998441,0.14166815,103850.0,103840.0,0.0479]
[1734497998652,0.50246815,103850.0,103830.0,0.01009373]
[1734497998947,0.18826015,103840.0,103830.0,0.01009373]
[1734497999145,0.28556015,103840.0,103830.0,0.01009373]
[1734497999545,0.2388561,103840.0,103830.0,0.01009373]
[1734497999956,0.21667326,103840.0,103830.0,0.01009373]
[1734498000244,0.57747326,103840.0,103830.0,0.01009373]
[1734498000435,0.64869852,103840.0,103830.0,0.01009373]
[1734498000634,0.048157,103820.0,103810.0,0.4544]
[1734498000835,0.11938226,103820.0,103810.0,0.408]
[1734498001052,0.11938226,103820.0,103810.0,0.3608]
[1734498001255,0.16538226,103820.0,103810.0,0.3608]
[1734498001547,0.16538226,103820.0,103810.0,0.36091665]
[1734498002349,0.52618226,103820.0,103810.0,0.00011665]
[1734498002546,0.89740752,103820.0,103790.0,0.91557]
[1734498002848,0.048181,103770.0,103760.0,0.63338185]
[1734498003049,0.048185,103760.0,103750.0,0.3608]
[1734498003444,0.11949983,103760.0,103750.0,0.36090452]
[1734498003746,0.11949983,103760.0,103750.0,0.00010452]
[1734498003954,0.48029983,103760.0,103750.0,0.00010452]
[1734498004857,0.85152509,103760.0,103710.0,0.36982733]
[1734498005147,0.048207,103720.0,103700.0,0.50882]
[1734498005354,0.048207,103720.0,103700.0,0.5083]
[1734498005543,0.11943226,103720.0,103700.0,0.4608]
[1734498005744,0.07122526,103720.0,103710.0,0.00010587]
[1734498006651,0.55145452,103720.0,103710.0,0.00010587]
[1734498007447,0.48022926,103720.0,103710.0,0.00010587]
[1734498007846,0.55145452,103720.0,103710.0,0.00010587]
[1734498008047,0.48022926,103720.0,103710.0,0.00010587]
[1734498008445,0.4887087,103720.0,103710.0,0.00010587]
[1734498008645,0.55993396,103720.0,103710.0,0.00010587]
[1734498009865,0.51172996,103720.0,103700.0,0.1]
[1734498010052,0.55145952,103710.0,103700.0,0.1]
[1734498010466,0.48023426,103710.0,103700.0,0.1]
[1734498010755,0.55145952,103710.0,103700.0,0.1]
[1734498011261,0.48023426,103710.0,103700.0,0.1]
[1734498011653,0.55145952,103710.0,103700.0,0.1]
[1734498012756,0.48023426,103710.0,103700.0,0.1]
[1734498013058,0.43202526,103710.0,103700.0,0.1]
[1734498013355,0.36927944,103720.0,103700.0,0.1]
[1734498013356,0.3608,103730.0,103710.0,0.048209]
[1734498013545,0.07122526,103730.0,103720.0,0.409004]
[1734498013747,0.78806526,103750.0,103730.0,0.048198]
[1734498013949,0.78806526,103750.0,103730.0,0.408998]
[1734498014858,8.957e-05,103760.0,103740.0,0.43214216]
[1734498015162,8.957e-05,103760.0,103750.0,0.40899]
[1734498015347,0.43211483,103760.0,103740.0,0.3609169]
[1734498015544,0.07122526,103750.0,103740.0,0.0001169]
[1734498015848,8.957e-05,103760.0,103740.0,0.3609169]
[1734498016052,8.957e-05,103760.0,103750.0,0.40899]
[1734498016956,0.07131483,103760.0,103750.0,0.04819]
[1734498017464,8.957e-05,103760.0,103750.0,0.04819]
[1734498018252,8.957e-05,103760.0,103750.0,0.48021526]
[1734498018649,8.957e-05,103760.0,103750.0,0.87731526]
[1734498018856,0.356,103790.0,103770.0,0.048179]
[1734498019056,0.356,103790.0,103770.0,0.408979]
[1734498020656,0.356,103790.0,103770.0,0.3608]
[1734498020858,0.356,103790.0,103780.0,0.408976]
[1734498022055,0.356,103790.0,103780.0,0.048176]
[1734498022261,0.356,103790.0,103780.0,0.408976]
[1734498022653,0.51594354,103800.0,103780.0,0.408976]
[1734498022859,0.01927796,103790.0,103780.0,0.408976]
[1734498024558,0.12618601,103790.0,103780.0,0.408976]
[1734498025273,0.01927796,103790.0,103780.0,0.408976]
[1734498025475,0.01927796,103790.0,103780.0,0.048176]
[1734498026152,0.01927796,103790.0,103780.0,0.408976]
[1734498026368,0.04873549,103800.0,103790.0,0.048171]
[1734498026369,0.00056849,103800.0,103790.0,0.048171]
[1734498026560,0.00056849,103800.0,103790.0,0.408971]
[1734498026754,6.849e-05,103800.0,103790.0,0.45536239]
[1734498026970,6.849e-05,103800.0,103790.0,0.50366239]
[1734498027767,0.00056849,103800.0,103790.0,0.50366239]
[1734498027963,0.0190747,103810.0,103800.0,0.048167]
[1734498028264,0.3608,103830.0,103800.0,0.3608]
[1734498028471,0.3608,103830.0,103810.0,0.3608]
[1734498028656,0.3608,103830.0,103820.0,0.048157]
[1734498028857,0.00856185,103830.0,103820.0,0.408957]
[1734498029059,0.10690805,103830.0,103820.0,0.408957]
[1734498029257,0.52476132,103840.0,103820.0,0.408957]
[1734498029483,0.00012003,103840.0,103830.0,0.408953]
[1734498029765,0.10702808,103840.0,103820.0,0.3608]
[1734498029971,0.15506105,103830.0,103820.0,0.3608]
[1734498030664,0.53521357,103840.0,103820.0,0.3608]
[1734498031075,0.53521357,103840.0,103810.0,0.408961]
[1734498031265,0.10690805,103830.0,103810.0,0.408961]
[1734498031467,0.10690805,103820.0,103810.0,0.3608]
[1734498031772,0.15506505,103820.0,103810.0,0.3608]
[1734498033267,0.15506505,103820.0,103800.0,0.408966]
[1734498033572,0.51586505,103820.0,103800.0,0.048166]
[1734498034364,0.10690805,103810.0,103790.0,0.45549139]
[1734498034667,0.10690805,103800.0,103790.0,0.40906239]
[1734498035659,0.15507205,103810.0,103790.0,0.40906239]
[1734498036055,0.15507205,103810.0,103790.0,0.36089139]
[1734498036261,0.51587505,103800.0,103790.0,9.139e-05]
[1734498036668,0.55147505,103800.0,103790.0,9.139e-05]
[1734498040067,0.444567,103800.0,103790.0,9.139e-05]
[1734498040258,0.083767,103800.0,103790.0,9.139e-05]
[1734498040774,0.55147505,103800.0,103790.0,9.139e-05]
[1734498041168,0.19067505,103800.0,103790.0,9.139e-05]
[1734498042774,0.19952947,103800.0,103790.0,9.139e-05]
[1734498043973,0.08011761,103800.0,103790.0,9.139e-05]
[1734498044271,0.08011761,103800.0,103790.0,0.04826239]
[1734498044881,0.08011761,103800.0,103790.0,0.40906239]
[1734498046074,0.11942619,103810.0,103790.0,0.40906239]
[1734498048077,0.01880184,103800.0,103790.0,0.40906239]
[1734498049071,0.11942619,103810.0,103790.0,0.36089139]
[1734498049269,0.12836378,103810.0,103800.0,0.408967]
[1734498049670,0.05710059,103810.0,103800.0,0.408967]
[1734498049872,0.05710059,103810.0,103800.0,0.446967]
[1734498050072,0.17454347,103820.0,103800.0,0.3988]
[1734498050272,0.06701833,103820.0,103810.0,0.408962]
[1734498050472,0.06701833,103820.0,103810.0,0.048162]
[1734498050473,0.13828152,103820.0,103810.0,0.048162]
[1734498051281,0.13828152,103820.0,103810.0,0.408962]
[1734498051474,0.09012352,103820.0,103810.0,0.408962]
[1734498051676,0.08441995,103830.0,103820.0,0.048157]
[1734498051878,1.0331521,103840.0,103820.0,0.048157]
[1734498052076,0.07126319,103830.0,103820.0,0.048157]
[1734498053072,0.07126319,103830.0,103820.0,0.408957]
[1734498053981,0.09353088,103840.0,103830.0,0.048153]
[1734498054173,0.00911093,103840.0,103830.0,0.481653]
[1734498054686,0.08037412,103840.0,103830.0,0.481653]
[1734498054876,0.08087412,103840.0,103830.0,0.481653]
[1734498055585,0.14841348,103840.0,103830.0,0.481653]
[1734498055985,0.14841348,103840.0,103830.0,0.120853]
[1734498056688,0.048153,103830.0,103810.0,0.40896]
[1734498056893,0.07126319,103820.0,103810.0,0.40896]
[1734498057388,0.048153,103830.0,103820.0,0.048157]
[1734498057389,0.07126319,103830.0,103820.0,0.048157]
[1734498058482,0.14791448,103840.0,103820.0,0.048157]
[1734498058803,0.14791448,103840.0,103820.0,0.408957]
[1734498059585,0.50332638,103830.0,103810.0,0.3608]
[1734498059886,0.50332638,103830.0,103810.0,0.408962]
[1734498059887,0.46886319,103830.0,103810.0,0.408962]
[1734498060187,0.07126319,103820.0,103810.0,0.408962]
[1734498060582,0.11942019,103820.0,103800.0,0.485966]
[1734498060784,0.07126319,103810.0,103800.0,0.485966]
[1734498061087,0.11942019,103820.0,103800.0,0.125166]
[1734498061285,0.11942019,103820.0,103800.0,0.485966]
[1734498064087,0.048162,103810.0,103800.0,0.4378]
[1734498064294,0.048162,103810.0,103790.0,0.39869139]
[1734498064295,0.048167,103800.0,103790.0,9.139e-05]
[1734498064507,0.048175,103790.0,103770.0,0.49070556]
[1734498064789,0.07126319,103780.0,103770.0,0.120379]
[1734498064993,0.48023819,103790.0,103770.0,0.120379]
[1734498065382,0.48023819,103790.0,103770.0,0.481179]
[1734498065582,0.48023819,103790.0,103780.0,0.0001161]
[1734498065982,0.51590893,103790.0,103780.0,0.0001161]
[1734498068588,0.52509981,103790.0,103780.0,0.0001161]
[1734498072597,0.88093981,103790.0,103780.0,0.0001161]
[1734498072798,0.04818,103780.0,103760.0,0.3608]
[1734498073006,0.10693393,103770.0,103760.0,0.3608]
[1734498073606,0.15511493,103770.0,103760.0,0.3608]
[1734498073796,0.15511493,103770.0,103760.0,0.3614224]
[1734498074001,0.048181,103770.0,103760.0,0.3614224]
[1734498074895,0.88093981,103790.0,103760.0,0.4091064]
[1734498075094,0.88093981,103790.0,103770.0,0.408981]
[1734498075998,0.048176,103780.0,103770.0,0.3608]
[1734498077399,0.88093681,103790.0,103770.0,0.40898]
[1734498078107,0.36999088,103790.0,103780.0,0.048176]
[1734498078308,0.51589893,103810.0,103780.0,0.485876]
[1734498078608,0.15510493,103790.0,103780.0,0.0769]
[1734498078810,0.15510493,103790.0,103770.0,0.40898]
[1734498078999,0.10693393,103780.0,103770.0,0.40898]
[1734498079321,0.05275668,103780.0,103770.0,0.40898]
[1734498079501,0.05275668,103780.0,103770.0,0.3608]
[1734498079502,0.10093268,103780.0,103770.0,0.3608]
[1734498080499,0.048176,103780.0,103770.0,0.3608]
[1734498081201,0.51590593,103790.0,103770.0,0.40898]
[1734498081399,0.15510593,103790.0,103770.0,0.40898]
[1734498081603,0.37962175,103800.0,103790.0,0.048171]
[1734498082308,0.00888793,103810.0,103800.0,0.048167]
[1734498082610,0.404038,103820.0,103800.0,0.408967]
[1734498082817,0.35588,103820.0,103810.0,0.408962]
[1734498083005,0.55208693,103830.0,103810.0,0.408962]
[1734498083006,0.55208693,103830.0,103810.0,0.482962]
[1734498083813,0.55258693,103830.0,103810.0,0.482962]
[1734498084815,0.55208693,103830.0,103810.0,0.482962]
[1734498085202,0.3697203,103830.0,103820.0,0.048157]
[1734498085511,0.0089203,103830.0,103820.0,0.408957]
[1734498085710,0.01893319,103830.0,103820.0,0.408957]
[1734498085913,0.0005,103830.0,103820.0,0.40907926]
[1734498087016,0.51600296,103840.0,103820.0,0.40907926]
[1734498088008,0.0005,103830.0,103820.0,0.40907926]
[1734498088801,0.51600296,103840.0,103820.0,0.40907926]
[1734498089219,0.53517301,103840.0,103820.0,0.40907926]
[1734498089512,0.10693393,103830.0,103820.0,0.04827926]
[1734498089914,0.10743393,103830.0,103820.0,0.04827926]
[1734498090317,0.15558693,103830.0,103820.0,0.00012226]
[1734498091015,0.15508693,103830.0,103820.0,0.00012226]
[1734498091810,0.15558693,103830.0,103820.0,0.00012226]
[1734498093216,0.0005,103830.0,103820.0,0.04827926]
[1734498093409,0.00929592,103840.0,103820.0,0.46785619]
[1734498093615,0.00012003,103840.0,103830.0,0.408953]
[1734498093816,0.408941,103860.0,103840.0,0.048145]
[1734498094020,0.408941,103860.0,103840.0,0.083645]
[1734498094322,0.408941,103860.0,103840.0,0.444445]
[1734498094725,0.40901193,103860.0,103840.0,0.444445]
[1734498095514,0.5250496,103860.0,103840.0,0.444445]
[1734498096119,0.41811567,103860.0,103850.0,0.048144]
[1734498096320,0.05731567,103860.0,103850.0,0.048144]
[1734498096924,0.05731567,103860.0,103850.0,0.082844]
[1734498097130,0.07697871,103860.0,103850.0,0.082844]
[1734498099329,0.18391264,103860.0,103850.0,0.082844]
[1734498100523,0.18391264,103860.0,103850.0,0.0347]
[1734498100940,0.18391264,103860.0,103840.0,0.444447]
[1734498101228,0.18391264,103860.0,103840.0,0.478747]
[1734498101430,0.02883771,103860.0,103850.0,0.048144]
[1734498101619,7.093e-05,103860.0,103850.0,0.408944]
[1734498101818,0.10700486,103860.0,103850.0,0.408944]
[1734498102030,0.07125383,103860.0,103850.0,0.408944]
[1734498102740,0.14243673,103860.0,103850.0,0.408944]
[1734498103028,0.14243673,103860.0,103850.0,0.3608]
[1734498103029,0.19107573,103860.0,103850.0,0.3608]
[1734498103223,0.11989283,103860.0,103850.0,0.3608]
[1734498103434,0.19107573,103860.0,103850.0,0.3608]
[1734498103724,0.11989283,103860.0,103850.0,0.3608]
[1734498103936,0.11939283,103860.0,103840.0,0.048148]
[1734498104138,0.11939283,103860.0,103840.0,0.408948]
[1734498104322,7.093e-05,103860.0,103850.0,0.408944]
[1734498104630,7.093e-05,103860.0,103850.0,0.483044]
[1734498104935,0.00057093,103860.0,103850.0,0.5542269]
[1734498105122,0.00906847,103870.0,103850.0,0.5542269]
[1734498105321,0.4801139,103880.0,103860.0,0.408939]
[1734498105926,0.408931,103880.0,103870.0,0.048134]
[1734498106933,0.41797018,103890.0,103870.0,0.408934]
[1734498107233,0.48915308,103890.0,103870.0,0.445334]
[1734498108034,0.5440018,103890.0,103870.0,0.445334]
[1734498108419,0.5440018,103890.0,103870.0,0.481734]
[1734498108623,0.43728314,103890.0,103880.0,0.04813]
[1734498108833,0.43728314,103890.0,103880.0,0.04825435]
[1734498109725,0.43728314,103890.0,103880.0,0.00012435]
[1734498109929,0.43778314,103890.0,103880.0,0.00012435]
[1734498110136,0.37034518,103890.0,103880.0,0.04825435]
[1734498110429,0.47706384,103890.0,103880.0,0.08365435]
[1734498111231,0.37034518,103890.0,103880.0,0.08365435]
[1734498112535,0.47706384,103890.0,103880.0,0.08365435]
[1734498115142,0.52518884,103890.0,103880.0,0.03552435]
[1734498116628,0.41847018,103890.0,103880.0,0.03552435]
[1734498116843,0.41847018,103890.0,103880.0,0.08365435]
[1734498118931,0.52468884,103890.0,103880.0,0.03552435]
[1734498119131,0.52468884,103890.0,103880.0,0.00012435]
[1734498120841,0.05717018,103890.0,103880.0,0.00012435]
[1734498121040,0.05717018,103890.0,103880.0,0.04825435]
[1734498121532,0.00904518,103890.0,103880.0,0.40905435]
[1734498123637,0.05717018,103890.0,103880.0,0.40905435]
[1734498124645,0.16388884,103890.0,103880.0,0.04825435]
[1734498124842,0.52468884,103890.0,103880.0,0.00012435]
[1734498125050,0.048134,103870.0,103860.0,0.3957]
[1734498125250,0.048134,103870.0,103860.0,0.3608]
[1734498125751,0.46751866,103880.0,103860.0,0.408938]
[1734498125937,0.048134,103870.0,103860.0,0.3608]
[1734498126138,0.048134,103870.0,103860.0,0.36089494]
[1734498126535,0.15485266,103870.0,103860.0,9.494e-05]
[1734498126939,0.51565266,103870.0,103840.0,0.085247]
[1734498127140,0.048148,103840.0,103830.0,0.0359]
[1734498127349,0.048148,103840.0,103820.0,0.408956]
[1734498127350,0.51566666,103840.0,103820.0,0.408956]
[1734498127553,0.15487166,103830.0,103820.0,0.3608]
[1734498127855,0.15487166,103830.0,103810.0,0.479562]
[1734498128153,0.07122283,103830.0,103820.0,0.36091742]
[1734498128652,0.07122283,103830.0,103820.0,0.00011742]
[1734498128951,0.11937583,103830.0,103820.0,0.00011742]
[1734498132248,0.11937583,103830.0,103820.0,0.36091742]
[1734498132249,0.07122283,103830.0,103820.0,0.36091742]
[1734498132451,0.4895958,103840.0,103820.0,0.40907342]
[1734498132863,0.19059866,103830.0,103820.0,0.00011742]
[1734498133250,0.15457583,103830.0,103820.0,0.00011742]
[1734498133445,0.15457583,103830.0,103820.0,0.36091742]
[1734498133646,0.37022397,103840.0,103820.0,0.36091742]
[1734498133846,0.87092683,103850.0,103830.0,0.409453]
[1734498134054,0.48017083,103840.0,103830.0,0.0005]
[1734498134248,0.55139366,103840.0,103830.0,0.0005]
[1734498134656,0.048153,103830.0,103820.0,0.00011742]
[1734498134954,0.07122283,103800.0,103790.0,0.07994989]
[1734498135153,0.07122283,103800.0,103790.0,0.0707]
[1734498135354,0.07122283,103800.0,103790.0,0.0371]
[1734498135355,0.48018983,103800.0,103790.0,0.0371]
[1734498135540,0.14244566,103800.0,103780.0,0.3608]
[1734498135742,0.048176,103780.0,103760.0,0.4315]
[1734498135948,0.11939883,103780.0,103770.0,0.36087773]
[1734498136854,0.12039883,103780.0,103770.0,0.36087773]
[1734498137054,0.12039883,103780.0,103770.0,7.773e-05]
[1734498137657,0.48119883,103780.0,103770.0,7.773e-05]
[1734498138357,0.48019883,103780.0,103770.0,7.773e-05]
[1734498138743,0.11939883,103780.0,103770.0,7.773e-05]
[1734498139954,0.048176,103780.0,103770.0,0.00057773]
[1734498140149,0.048176,103780.0,103770.0,0.36137773]